fUSD/lending_fUSD_20240905
["ID","MTS","AMOUNT","RATE_DAILY","PERIOD"]
[337210457,1725501041711,-7476.98782959,0.0001487,2]
[337210459,1725501041720,-500.0,0.0001487,2]
[337210461,1725501041729,-500.0,0.0001487,2]
[337210463,1725501041738,-500.94,0.0001487,2]
[337210465,1725501041747,-624.44,0.0001487,2]
[337210467,1725501041756,-500.0,0.0001487,2]
[337210469,1725501041765,-320.36616384,0.00014873,2]
[337210471,1725501041774,-502.0610136,0.00014873,2]
[337210473,1725501041783,-500.0,0.00014873,2]
[337210475,1725501041792,-500.0,0.00014873,2]
[337210477,1725501041801,-14953.9756592,0.00014873,2]
[337210479,1725501041811,-7476.98782959,0.00014874,2]
[337210481,1725501041820,-14953.9756592,0.00014875,2]
[337210483,1725501041829,-500.0,0.00014875,2]
[337210485,1725501041838,-3153.18,0.00014875,2]
[337210487,1725501041848,-940.12,0.00014875,2]
[337210489,1725501041858,-566.94,0.00014875,2]
[337210491,1725501041868,-500.0,0.00014875,2]
[337210493,1725501041877,-500.0,0.00014875,2]
[337210495,1725501041887,-534.68,0.00014875,2]
[337210497,1725501041897,-500.0,0.00014875,2]
[337210499,1725501041906,-500.0,0.00014875,2]
[337210501,1725501041916,-518.7,0.00014875,2]
[337210503,1725501041925,-1065.97,0.00014875,2]
[337210505,1725501041934,-837.31,0.00014875,2]
[337210507,1725501041943,-500.0,0.00014875,2]
[337210509,1725501041953,-500.0,0.00014875,2]
[337210511,1725501041963,-500.0,0.00014875,2]
[337210513,1725501041977,-37384.9391479,0.00014876,2]
[337210515,1725501041986,-1078.93363158,0.00014876,2]
[337210517,1725501041995,-4308.45201801,0.00014878,2]
[337210519,1725501042004,-37384.9391479,0.00014878,2]
[337210521,1725501042013,-539.46681579,0.00014878,2]
[337210523,1725501042022,-500.0,0.00014878,2]
[337210525,1725501042031,-2026.89,0.00014879,2]
[337210526,1725501042041,-2026.89,0.00014879,2]
[337210528,1725501042049,-500.0,0.00014879,2]
[337210530,1725501042059,-500.0,0.00014879,2]
[337210532,1725501042068,-500.0,0.00014879,2]
[337210534,1725501042077,-500.0,0.00014879,2]
[337210536,1725501042086,-1474.2,0.00014879,2]
[337210538,1725501042095,-1474.2,0.00014879,2]
[337210540,1725501042104,-500.0,0.00014879,2]
[337210542,1725501042113,-500.0,0.00014879,2]
[337210544,1725501042122,-500.0,0.00014879,2]
[337210546,1725501042131,-500.0,0.00014879,2]
[337210548,1725501042145,-342.66318499,0.00014879,2]
[337210550,1725501042154,-500.0,0.00014879,2]
[337210552,1725501042163,-500.0,0.00014879,2]
[337210554,1725501042172,-500.0,0.00014879,2]
[337210556,1725501042181,-500.0,0.00014879,2]
[337210558,1725501042190,-185.59404677,0.00014879,2]
[337210560,1725501042199,-500.0,0.00014879,2]
[337210562,1725501042208,-163.30791182,0.00014879,2]
[337210564,1725501042217,-500.0,0.00014879,2]
[337210566,1725501042225,-500.0,0.00014879,2]
[337210568,1725501042236,-500.0,0.00014879,2]
[337210570,1725501042245,-500.0,0.00014879,2]
[337210572,1725501042254,-500.0,0.00014879,2]
[337210574,1725501042263,-500.0,0.00014879,2]
[337210575,1725501042273,-532.91327111,0.00014879,2]
[337210577,1725501042283,-507.50814886,0.00014879,2]
[337210579,1725501042291,-503.6333498,0.00014879,2]
[337210581,1725501042300,-997.26,0.00014879,2]
[337210583,1725501042311,-156.38560584,0.00014879,2]
[337210585,1725501042320,-997.26,0.00014879,2]
[337210587,1725501042329,-646.18507334,0.00014879,2]
[337210590,1725501042338,-500.0,0.00014879,2]
[337210592,1725501042349,-198.01759152,0.00014879,2]
[337210594,1725501042359,-500.0,0.00014879,2]
[337210596,1725501042368,-216.05424368,0.00014879,2]
[337210598,1725501042377,-290.25702062,0.00014879,2]
[337210599,1725501042387,-184.61015919,0.00014879,2]
[337210601,1725501042396,-3153.18,0.00014879,2]
[337210603,1725501042407,-663.6,0.00014879,2]
[337210605,1725501042416,-663.6,0.00014879,2]
[337210607,1725501042425,-940.12,0.00014879,2]
[337210610,1725501042435,-566.94,0.00014879,2]
[337210611,1725501042444,-264.01451843,0.00014879,2]
[337210613,1725501042455,-500.0,0.00014879,2]
[337210616,1725501042465,-500.0,0.00014879,2]
[337210618,1725501042473,-3245.99,0.00014879,2]
[337210619,1725501042482,-3245.99,0.00014879,2]
[337210621,1725501042491,-695.26,0.00014879,2]
[337210623,1725501042500,-695.26,0.00014879,2]
[337210625,1725501042509,-500.0,0.00014879,2]
[337210627,1725501042518,-500.0,0.00014879,2]
[337210629,1725501042529,-534.68,0.00014879,2]
[337210631,1725501042539,-500.0,0.00014879,2]
[337210633,1725501042548,-500.0,0.00014879,2]
[337210635,1725501042557,-500.0,0.00014879,2]
[337210637,1725501042566,-500.0,0.00014879,2]
[337210639,1725501042576,-500.0,0.00014879,2]
[337210641,1725501042585,-645.85897781,0.00014879,2]
[337210643,1725501042594,-511.60786398,0.00014879,2]
[337210645,1725501042603,-1289.87,0.00014879,2]
[337210648,1725501042615,-1289.87,0.00014879,2]
[337210650,1725501042625,-500.0,0.00014879,2]
[337210652,1725501042634,-474.23130912,0.00014879,2]
[337210654,1725501042643,-500.0,0.00014879,2]
[337210656,1725501042653,-500.0,0.00014879,2]
[337210658,1725501042663,-500.0,0.00014879,2]
[337210660,1725501042672,-500.0,0.00014879,2]
[337210662,1725501042683,-500.0,0.00014879,2]
[337210664,1725501042693,-500.0,0.00014879,2]
[337210666,1725501042703,-225.34534893,0.00014879,2]
[337210668,1725501042714,-875.37,0.00014879,2]
[337210670,1725501042724,-875.37,0.00014879,2]
[337210672,1725501042733,-500.0,0.00014879,2]
[337210674,1725501042743,-500.0,0.00014879,2]
[337210676,1725501042752,-625.54,0.00014879,2]
[337210678,1725501042762,-625.54,0.00014879,2]
[337210680,1725501042772,-743.54,0.00014879,2]
[337210682,1725501042781,-743.54,0.00014879,2]
[337210684,1725501042790,-500.0,0.00014879,2]
[337210686,1725501042799,-500.0,0.00014879,2]
[337210688,1725501042809,-1846.82,0.00014879,2]
[337210690,1725501042818,-1846.82,0.00014879,2]
[337210692,1725501042828,-503.27255024,0.00014879,2]
[337210694,1725501042838,-500.0,0.00014879,2]
[337210696,1725501042847,-500.0,0.00014879,2]
[337210698,1725501042856,-500.0,0.00014879,2]
[337210700,1725501042866,-500.0,0.00014879,2]
[337210702,1725501042875,-1087.48,0.00014879,2]
[337210704,1725501042886,-1087.48,0.00014879,2]
[337210706,1725501042897,-500.0,0.00014879,2]
[337210708,1725501042906,-500.0,0.00014879,2]
[337210710,1725501042915,-500.0,0.00014879,2]
[337210712,1725501042924,-500.0,0.00014879,2]
[337210714,1725501042934,-846.52,0.00014879,2]
[337210716,1725501042943,-846.52,0.00014879,2]
[337210718,1725501042952,-961.98,0.00014879,2]
[337210720,1725501042961,-961.98,0.00014879,2]
[337210722,1725501042974,-1844.78,0.00014879,2]
[337210724,1725501042983,-1844.78,0.00014879,2]
[337210726,1725501042992,-500.0,0.00014879,2]
[337210728,1725501043001,-1108.75,0.00014879,2]
[337210730,1725501043010,-1108.75,0.00014879,2]
[337210732,1725501043019,-500.0,0.00014879,2]
[337210735,1725501043028,-2656.38,0.00014879,2]
[337210738,1725501043037,-2656.38,0.00014879,2]
[337210740,1725501043047,-812.89,0.00014879,2]
[337210742,1725501043056,-812.89,0.00014879,2]
[337210745,1725501043065,-500.0,0.00014879,2]
[337210749,1725501043075,-500.0,0.00014879,2]
[337210751,1725501043084,-500.0,0.00014879,2]
[337210754,1725501043093,-500.0,0.00014879,2]
[337210757,1725501043103,-518.7,0.00014879,2]
[337210760,1725501043112,-764.18,0.00014879,2]
[337210762,1725501043121,-764.18,0.00014879,2]
[337210765,1725501043130,-500.0,0.00014879,2]
[337210767,1725501043140,-508.49624804,0.00014879,2]
[337210769,1725501043150,-500.0,0.00014879,2]
[337210771,1725501043159,-500.0,0.00014879,2]
[337210773,1725501043168,-500.0,0.00014879,2]
[337210775,1725501043179,-438.53085351,0.00014879,2]
[337210778,1725501043189,-500.0,0.00014879,2]
[337210780,1725501043198,-2466.34,0.00014879,2]
[337210782,1725501043207,-2466.34,0.00014879,2]
[337210784,1725501043218,-500.0,0.00014879,2]
[337210785,1725501043227,-500.0,0.00014879,2]
[337210788,1725501043238,-500.0,0.00014879,2]
[337210790,1725501043248,-500.0,0.00014879,2]
[337210792,1725501043258,-1065.97,0.00014879,2]
[337210794,1725501043267,-500.0,0.00014879,2]
[337210796,1725501043276,-500.0,0.00014879,2]
[337210798,1725501043287,-3080.79,0.00014879,2]
[337210800,1725501043297,-3080.79,0.00014879,2]
[337210802,1725501043306,-500.0,0.00014879,2]
[337210804,1725501043317,-500.0,0.00014879,2]
[337210806,1725501043327,-500.0,0.00014879,2]
[337210808,1725501043336,-500.0,0.00014879,2]
[337210810,1725501043345,-1138.67,0.00014879,2]
[337210812,1725501043354,-1138.67,0.00014879,2]
[337210814,1725501043364,-837.31,0.00014879,2]
[337210815,1725501043373,-500.0,0.00014879,2]
[337210817,1725501043383,-500.0,0.00014879,2]
[337210819,1725501043393,-500.0,0.00014879,2]
[337210821,1725501043403,-500.0,0.00014879,2]
[337210823,1725501043412,-1327.1,0.00014879,2]
[337210825,1725501043422,-1327.1,0.00014879,2]
[337210827,1725501043431,-811.05,0.00014879,2]
[337210829,1725501043440,-811.05,0.00014879,2]
[337210831,1725501043451,-500.0,0.00014879,2]
[337210833,1725501043460,-500.0,0.00014879,2]
[337210835,1725501043470,-500.0,0.00014879,2]
[337210837,1725501043479,-500.0,0.00014879,2]
[337210838,1725501043488,-500.0,0.00014879,2]
[337210840,1725501043497,-514.23251568,0.00014879,2]
[337210842,1725501043507,-500.0,0.00014879,2]
[337210844,1725501043518,-500.0,0.00014879,2]
[337210846,1725501043529,-500.0,0.00014879,2]
[337210848,1725501043539,-189.08301954,0.00014879,2]
[337210850,1725501043549,-691.73,0.00014879,2]
[337210852,1725501043561,-691.73,0.00014879,2]
[337210854,1725501043570,-1036.16,0.00014879,2]
[337210856,1725501043579,-1036.16,0.00014879,2]
[337210858,1725501043588,-622.99,0.00014879,2]
[337210860,1725501043597,-622.99,0.00014879,2]
[337210862,1725501043607,-500.0,0.00014879,2]
[337210865,1725501043616,-500.0,0.00014879,2]
[337210867,1725501043626,-500.0,0.00014879,2]
[337210869,1725501043635,-500.0,0.00014879,2]
[337210871,1725501043645,-500.0,0.00014879,2]
[337210873,1725501043654,-500.0,0.00014879,2]
[337210875,1725501043663,-1354.44,0.00014879,2]
[337210877,1725501043672,-500.0,0.00014879,2]
[337210879,1725501043682,-1354.44,0.00014879,2]
[337210881,1725501043691,-500.0,0.00014879,2]
[337210883,1725501043700,-500.0,0.00014879,2]
[337210885,1725501043709,-500.0,0.00014879,2]
[337210887,1725501043718,-680.76,0.00014879,2]
[337210889,1725501043727,-680.76,0.00014879,2]
[337210892,1725501043736,-958.36,0.00014879,2]
[337210895,1725501043745,-958.36,0.00014879,2]
[337210898,1725501043755,-500.0,0.00014879,2]
[337210900,1725501043764,-500.0,0.00014879,2]
[337210902,1725501043773,-1518.49,0.00014879,2]
[337210904,1725501043782,-1518.49,0.00014879,2]
[337210906,1725501043791,-500.0,0.00014879,2]
[337210908,1725501043802,-500.0,0.00014879,2]
[337210911,1725501043811,-500.0,0.00014879,2]
[337210912,1725501043820,-500.0,0.00014879,2]
[337210915,1725501043830,-500.0,0.00014879,2]
[337210916,1725501043839,-500.0,0.00014879,2]
[337210918,1725501043848,-500.0,0.00014879,2]
[337210920,1725501043858,-500.0,0.00014879,2]
[337210922,1725501043867,-1118.3,0.00014879,2]
[337210924,1725501043876,-1118.3,0.00014879,2]
[337210926,1725501043885,-500.0,0.00014879,2]
[337210928,1725501043895,-500.0,0.00014879,2]
[337210930,1725501043904,-500.0,0.00014879,2]
[337210932,1725501043913,-500.0,0.00014879,2]
[337210934,1725501043922,-500.0,0.00014879,2]
[337210936,1725501043931,-500.0,0.00014879,2]
[337210938,1725501043941,-500.0,0.00014879,2]
[337210940,1725501043950,-500.0,0.00014879,2]
[337210942,1725501043959,-500.0,0.00014879,2]
[337210944,1725501043972,-500.0,0.00014879,2]
[337210946,1725501043982,-636.1,0.00014879,2]
[337210948,1725501043991,-636.1,0.00014879,2]
[337210950,1725501044000,-500.0,0.00014879,2]
[337210952,1725501044010,-500.0,0.00014879,2]
[337210954,1725501044019,-889.54,0.00014879,2]
[337210956,1725501044030,-889.54,0.00014879,2]
[337210958,1725501044039,-500.0,0.00014879,2]
[337210960,1725501044048,-500.0,0.00014879,2]
[337210962,1725501044057,-500.0,0.00014879,2]
[337210964,1725501044067,-500.0,0.00014879,2]
[337210965,1725501044076,-500.0,0.00014879,2]
[337210967,1725501044085,-500.0,0.00014879,2]
[337210969,1725501044095,-500.0,0.00014879,2]
[337210971,1725501044104,-500.0,0.00014879,2]
[337210973,1725501044113,-582.39,0.00014879,2]
[337210975,1725501044122,-582.39,0.00014879,2]
[337210977,1725501044132,-500.0,0.00014879,2]
[337210978,1725501044141,-500.0,0.00014879,2]
[337210980,1725501044151,-500.0,0.00014879,2]
[337210982,1725501044160,-500.0,0.00014879,2]
[337210984,1725501044169,-500.0,0.00014879,2]
[337210986,1725501044178,-567.54764218,0.00014879,2]
[337210988,1725501044188,-500.94,0.00014879,2]
[337210990,1725501044197,-500.94,0.00014879,2]
[337210991,1725501044207,-624.44,0.00014879,2]
[337210993,1725501044216,-624.44,0.00014879,2]
[337210995,1725501044225,-500.0,0.00014879,2]
[337210997,1725501044234,-500.0,0.00014879,2]
[337210999,1725501044243,-37384.9391479,0.00014879,2]
[337211001,1725501044252,-1078.93363158,0.00014879,2]
[337211002,1725501044261,-628.04,0.0001488,2]
[337211004,1725501044270,-401.26969961,0.0001488,2]
[337211006,1725501044280,-500.0,0.0001488,2]
[337211008,1725501044289,-500.0,0.0001488,2]
[337211010,1725501044298,-500.0,0.0001488,2]
[337211012,1725501044308,-500.0,0.0001488,2]
[337211013,1725501044318,-1311.39,0.0001488,2]
[337211015,1725501044327,-3153.18,0.0001488,2]
[337211017,1725501044336,-500.0,0.0001488,2]
[337211019,1725501044346,-940.12,0.0001488,2]
[337211021,1725501044356,-566.94,0.0001488,2]
[337211023,1725501044365,-500.0,0.0001488,2]
[337211025,1725501044375,-500.0,0.0001488,2]
[337211027,1725501044384,-517.51597604,0.0001488,2]
[337211029,1725501044395,-534.68,0.0001488,2]
[337211031,1725501044405,-500.0,0.0001488,2]
[337211033,1725501044415,-500.0,0.0001488,2]
[337211035,1725501044424,-518.7,0.0001488,2]
[337211037,1725501044434,-1065.97,0.0001488,2]
[337211039,1725501044443,-837.31,0.0001488,2]
[337211041,1725501044452,-500.0,0.0001488,2]
[337211061,1725501044644,-264.9511388,0.0001488,2]
[337211063,1725501044655,-539.46681579,0.0001488,2]
[337211065,1725501044665,-500.0,0.00014883,2]
[337211067,1725501044674,-500.0,0.00014883,2]
[337211069,1725501044683,-808.39,0.00014883,2]
[337211071,1725501044693,-500.0,0.00014883,2]
[337211073,1725501044702,-500.0,0.00014883,2]
[337211075,1725501044712,-500.0,0.00014883,2]
[337211077,1725501044721,-500.0,0.00014883,2]
[337211079,1725501044730,-500.0,0.00014883,2]
[337211080,1725501044739,-759.98,0.00014883,2]
[337211082,1725501044748,-500.0,0.00014883,2]
[337211084,1725501044757,-500.0,0.00014883,2]
[337211086,1725501044768,-500.0,0.00014883,2]
[337211088,1725501044777,-500.0,0.00014883,2]
[337211090,1725501044786,-500.0,0.00014883,2]
[337211092,1725501044795,-500.0,0.00014883,2]
[337211094,1725501044804,-4524.09,0.00014883,2]
[337211096,1725501044814,-505.61366257,0.00014883,2]
[337211098,1725501044823,-504.1256057,0.00014883,2]
[337211100,1725501044832,-1178.57,0.00014883,2]
[337211102,1725501044842,-3654.15,0.00014883,2]
[337211103,1725501044850,-935.21,0.00014883,2]
[337211106,1725501044860,-500.0,0.00014883,2]
[337211108,1725501044869,-754.77,0.00014883,2]
[337211109,1725501044879,-1514.09,0.00014883,2]
[337211111,1725501044888,-3075.33,0.00014883,2]
[337211113,1725501044898,-500.0,0.00014883,2]
[337211115,1725501044907,-1162.24,0.00014883,2]
[337211117,1725501044916,-1927.03,0.00014883,2]
[337211119,1725501044926,-500.0,0.00014883,2]
[337211121,1725501044936,-9078.0109,0.00014884,2]
[337211123,1725501044945,-538.5932,0.00014884,2]
[337211125,1725501044955,-382.0641,0.00014884,2]
[337211127,1725501044966,-163.41210931,0.00014885,2]
[337211129,1725501044975,-500.0,0.00014885,2]
[337211131,1725501044985,-1021.79,0.00014885,2]
[337211133,1725501044995,-508.59946413,0.00014885,2]
[337211135,1725501045004,-500.0,0.00014885,2]
[337211137,1725501045015,-500.0,0.00014885,2]
[337211139,1725501045024,-922.89,0.00014885,2]
[337211141,1725501045034,-500.0,0.00014885,2]
[337211143,1725501045044,-463.61034523,0.00014885,2]
[337211145,1725501045053,-500.0,0.00014885,2]
[337211147,1725501045063,-1807.0,0.00014885,2]
[337211149,1725501045073,-2541.07,0.00014885,2]
[337211151,1725501045082,-500.0,0.00014885,2]
[337211153,1725501045092,-500.0,0.00014885,2]
[337211155,1725501045101,-500.0,0.00014885,2]
[337211157,1725501045110,-500.0,0.00014885,2]
[337211159,1725501045120,-500.0,0.00014885,2]
[337211161,1725501045129,-591.92,0.00014885,2]
[337211163,1725501045139,-530.13418223,0.00014885,2]
[337211165,1725501045149,-546.34,0.00014885,2]
[337211167,1725501045159,-500.0,0.00014885,2]
[337211169,1725501045170,-507.20927353,0.00014885,2]
[337211171,1725501045179,-525.88380044,0.00014885,2]
[337211172,1725501045189,-552.38,0.00014885,2]
[337211174,1725501045199,-500.0,0.00014885,2]
[337211176,1725501045209,-500.0,0.00014885,2]
[337211178,1725501045218,-500.0,0.00014885,2]
[337211180,1725501045227,-500.0,0.00014885,2]
[337211182,1725501045237,-500.0,0.00014885,2]
[337211184,1725501045246,-588.03,0.00014885,2]
[337211186,1725501045256,-501.19558561,0.00014885,2]
[337211188,1725501045265,-514.52770215,0.00014885,2]
[337211190,1725501045274,-1053.46,0.00014885,2]
[337211192,1725501045283,-500.0,0.00014885,2]
[337211194,1725501045294,-500.0,0.00014885,2]
[337211196,1725501045304,-500.0,0.00014885,2]
[337211198,1725501045314,-501.48750567,0.00014885,2]
[337211200,1725501045323,-500.0,0.00014885,2]
[337211202,1725501045333,-573.64,0.00014885,2]
[337211204,1725501045344,-500.0,0.00014885,2]
[337211206,1725501045354,-500.0,0.00014885,2]
[337211208,1725501045363,-2719.8,0.00014885,2]
[337211210,1725501045372,-500.0,0.00014885,2]
[337211212,1725501045382,-500.0,0.00014885,2]
[337211214,1725501045391,-500.0,0.00014885,2]
[337211216,1725501045402,-500.0,0.00014885,2]
[337211218,1725501045411,-500.0,0.00014885,2]
[337211220,1725501045420,-500.0,0.00014885,2]
[337211222,1725501045430,-500.0,0.00014885,2]
[337211224,1725501045439,-500.0,0.00014885,2]
[337211226,1725501045448,-500.0,0.00014885,2]
[337211228,1725501045457,-500.0,0.00014885,2]
[337211230,1725501045467,-500.0,0.00014885,2]
[337211231,1725501045476,-582.82254653,0.00014885,2]
[337211233,1725501045485,-500.0,0.00014885,2]
[337211235,1725501045495,-500.0,0.00014885,2]
[337211237,1725501045504,-500.0,0.00014885,2]
[337211239,1725501045513,-500.0,0.00014885,2]
[337211241,1725501045523,-846.14,0.00014885,2]
[337211243,1725501045531,-500.0,0.00014885,2]
[337211245,1725501045541,-989.47,0.00014885,2]
[337211247,1725501045550,-305.61619434,0.00014885,2]
[337211249,1725501045559,-1269.37,0.00014885,2]
[337211251,1725501045569,-500.0,0.00014885,2]
[337211253,1725501045578,-500.0,0.00014885,2]
[337211255,1725501045587,-1302.95,0.00014885,2]
[337211257,1725501045597,-178.96932836,0.00014885,2]
[337211259,1725501045607,-735.55,0.00014885,2]
[337211261,1725501045616,-759.75,0.00014885,2]
[337211263,1725501045626,-500.0,0.00014885,2]
[337211265,1725501045635,-639.16158784,0.00014885,2]
[337211266,1725501045647,-500.0,0.00014885,2]
[337211268,1725501045656,-1391.46,0.00014885,2]
[337211270,1725501045666,-500.0,0.00014885,2]
[337211272,1725501045675,-545.5,0.00014885,2]
[337211274,1725501045685,-1426.67,0.00014885,2]
[337211276,1725501045695,-518.55,0.00014885,2]
[337211278,1725501045706,-500.0,0.00014885,2]
[337211280,1725501045715,-646.65,0.00014885,2]
[337211282,1725501045724,-500.0,0.00014885,2]
[337211284,1725501045735,-500.0,0.00014885,2]
[337211286,1725501045746,-500.0,0.00014885,2]
[337211288,1725501045756,-2026.89,0.00014886,2]
[337211290,1725501045766,-500.0,0.00014886,2]
[337211292,1725501045775,-506.48849558,0.00014886,2]
[337211294,1725501045785,-1474.2,0.00014886,2]
[337211296,1725501045794,-500.0,0.00014886,2]
[337211298,1725501045804,-500.0,0.00014886,2]
[337211300,1725501045814,-500.0,0.00014886,2]
[337211302,1725501045824,-500.0,0.00014886,2]
[337211304,1725501045834,-500.0,0.00014886,2]
[337211306,1725501045843,-500.0,0.00014886,2]
[337211308,1725501045853,-500.0,0.00014886,2]
[337211310,1725501045863,-997.26,0.00014886,2]
[337211312,1725501045872,-159.7254,0.00014886,2]
[337211314,1725501045881,-500.0,0.00014886,2]
[337211316,1725501045890,-500.0,0.00014886,2]
[337211318,1725501045900,-1311.39,0.00014886,2]
[337211320,1725501045910,-484.1652782,0.00014886,2]
[337211322,1725501045919,-663.6,0.00014886,2]
[337211323,1725501045928,-348.99392035,0.00014886,2]
[337211325,1725501045938,-3245.99,0.00014886,2]
[337211327,1725501045947,-500.0,0.00014886,2]
[337211329,1725501045957,-695.26,0.00014886,2]
[337211331,1725501045969,-500.0,0.00014886,2]
[337211333,1725501045979,-500.0,0.00014886,2]
[337211335,1725501045988,-1289.87,0.00014886,2]
[337211337,1725501045997,-500.0,0.00014886,2]
[337211339,1725501046007,-500.0,0.00014886,2]
[337211343,1725501046016,-500.0,0.00014886,2]
[337211345,1725501046027,-875.37,0.00014886,2]
[337211347,1725501046037,-500.0,0.00014886,2]
[337211349,1725501046046,-625.54,0.00014886,2]
[337211351,1725501046055,-743.54,0.00014886,2]
[337211353,1725501046065,-500.0,0.00014886,2]
[337211355,1725501046074,-1846.82,0.00014886,2]
[337211357,1725501046083,-500.0,0.00014886,2]
[337211358,1725501046092,-500.0,0.00014886,2]
[337211360,1725501046102,-1087.48,0.00014886,2]
[337211362,1725501046111,-500.0,0.00014886,2]
[337211364,1725501046120,-500.0,0.00014886,2]
[337211366,1725501046129,-846.52,0.00014886,2]
[337211367,1725501046139,-961.98,0.00014886,2]
[337211369,1725501046148,-1844.78,0.00014886,2]
[337211371,1725501046157,-1108.75,0.00014886,2]
[337211373,1725501046167,-2656.38,0.00014886,2]
[337211375,1725501046175,-812.89,0.00014886,2]
[337211377,1725501046185,-500.0,0.00014886,2]
[337211379,1725501046194,-500.0,0.00014886,2]
[337211380,1725501046203,-764.18,0.00014886,2]
[337211383,1725501046212,-500.0,0.00014886,2]
[337211386,1725501046221,-500.0,0.00014886,2]
[337211388,1725501046231,-2466.34,0.00014886,2]
[337211390,1725501046239,-500.0,0.00014886,2]
[337211392,1725501046249,-500.0,0.00014886,2]
[337211394,1725501046258,-500.0,0.00014886,2]
[337211396,1725501046267,-3080.79,0.00014886,2]
[337211398,1725501046277,-500.0,0.00014886,2]
[337211400,1725501046286,-500.0,0.00014886,2]
[337211402,1725501046295,-1138.67,0.00014886,2]
[337211404,1725501046305,-500.0,0.00014886,2]
[337211406,1725501046315,-500.0,0.00014886,2]
[337211408,1725501046325,-1327.1,0.00014886,2]
[337211410,1725501046334,-811.05,0.00014886,2]
[337211412,1725501046344,-500.0,0.00014886,2]
[337211413,1725501046353,-500.0,0.00014886,2]
[337211415,1725501046362,-691.73,0.00014886,2]
[337211417,1725501046372,-1036.16,0.00014886,2]
[337211419,1725501046381,-622.99,0.00014886,2]
[337211421,1725501046392,-500.0,0.00014886,2]
[337211423,1725501046401,-500.0,0.00014886,2]
[337211425,1725501046410,-500.0,0.00014886,2]
[337211427,1725501046420,-500.0,0.00014886,2]
[337211429,1725501046429,-1354.44,0.00014886,2]
[337211431,1725501046439,-500.0,0.00014886,2]
[337211433,1725501046448,-680.76,0.00014886,2]
[337211435,1725501046457,-958.36,0.00014886,2]
[337211437,1725501046467,-500.0,0.00014886,2]
[337211439,1725501046477,-1518.49,0.00014886,2]
[337211441,1725501046486,-500.0,0.00014886,2]
[337211443,1725501046495,-500.0,0.00014886,2]
[337211445,1725501046504,-569.14038294,0.00014886,2]
[337211447,1725501046515,-559.48074642,0.00014886,2]
[337211448,1725501046525,-1118.3,0.00014886,2]
[337211450,1725501046534,-500.0,0.00014886,2]
[337211452,1725501046544,-500.0,0.00014886,2]
[337211453,1725501046553,-500.0,0.00014886,2]
[337211454,1725501046563,-500.0,0.00014886,2]
[337211455,1725501046572,-500.0,0.00014886,2]
[337211456,1725501046581,-636.1,0.00014886,2]
[337211457,1725501046590,-500.0,0.00014886,2]
[337211458,1725501046600,-889.54,0.00014886,2]
[337211459,1725501046609,-500.0,0.00014886,2]
[337211460,1725501046618,-500.0,0.00014886,2]
[337211461,1725501046627,-500.0,0.00014886,2]
[337211462,1725501046636,-500.0,0.00014886,2]